[Event "MCR rapid mládeže 2023 U16"]
[Site "Harachov, Czech Republic"]
[Date "2023.09.10"]
[Round "8.20"]
[White "Zrust, Lukas"]
[Black "Rudlof, Adam"]
[Result "0-1"]
[TimeControl "20min+5s/move"]
[WhiteElo "1519"]
[BlackElo "1436"]

1. d4 {[%clk 00:20:08]} {[%emt 00:00:01]} Nf6 {[%clk 00:20:08]} {[%emt
00:00:02]} 2. c4 {[%clk 00:20:12]} {[%emt 00:00:01]} c5 {[%clk 00:20:12]} 3.
Nf3 {[%clk 00:20:14]} {[%emt 00:00:04]} cxd4 {[%clk 00:19:47]} {[%emt
00:00:30]} 4. Nxd4 {[%clk 00:20:17]} {[%emt 00:00:01]} Nc6 {[%clk 00:19:18]}
{[%emt 00:00:35]} 5. g3 {[%clk 00:20:12]} {[%emt 00:00:10]} g6 {[%clk
00:19:14]} {[%emt 00:00:10]} 6. Bg2 {[%clk 00:20:09]} {[%emt 00:00:08]} Bg7
{[%clk 00:19:16]} {[%emt 00:00:03]} 7. Nxc6 {[%clk 00:19:57]} {[%emt 00:00:16]}
bxc6 {[%clk 00:19:11]} {[%emt 00:00:10]} 8. Nc3 {[%emt 00:00:06]} O-O {[%clk
00:19:10]} {[%emt 00:00:04]} 9. O-O {[%clk 00:19:59]} {[%emt 00:00:04]} Ba6
{[%clk 00:18:28]} {[%emt 00:00:48]} 10. Qa4 {[%clk 00:19:13]} {[%emt 00:00:50]}
Qc8 {[%clk 00:14:24]} {[%emt 00:04:01]} 11. e4 {[%clk 00:15:45]} {[%emt
00:03:40]} Ng4 {[%clk 00:09:51]} {[%emt 00:04:39]} 12. Rd1 {[%clk 00:11:45]}
{[%emt 00:04:06]} Ne5 {[%clk 00:09:36]} {[%emt 00:00:16]} 13. Bf1 {[%clk
00:10:35]} {[%emt 00:01:18]} Nf3+ {[%clk 00:08:20]} {[%emt 00:01:21]} 14. Kg2
{[%clk 00:10:32]} {[%emt 00:00:08]} Nd4 {[%clk 00:08:18]} {[%emt 00:00:05]} 15.
Be3 {[%clk 00:10:10]} {[%emt 00:00:29]} e5 {[%clk 00:07:33]} {[%emt 00:00:50]}
16. Ne2 {[%clk 00:09:06]} {[%emt 00:01:09]} c5 {[%clk 00:06:01]} {[%emt
00:01:36]} 17. Nc3 {[%clk 00:08:15]} {[%emt 00:00:56]} Re8 {[%clk 00:03:32]}
{[%emt 00:02:32]} 18. Nd5 {[%clk 00:08:06]} {[%emt 00:00:17]} Bb7 {[%clk
00:02:40]} {[%emt 00:00:53]} 19. Rac1 {[%clk 00:07:43]} {[%emt 00:00:31]} d6
{[%clk 00:01:38]} {[%emt 00:01:09]} 20. h3 {[%clk 00:07:03]} {[%emt 00:00:45]}
h6 {[%clk 00:01:02]} {[%emt 00:00:41]} 21. a3 {[%clk 00:06:44]} {[%emt
00:00:23]} Bc6 {[%clk 00:00:32]} {[%emt 00:00:34]} 22. Qa5 {[%clk 00:05:46]}
{[%emt 00:01:05]} Nb3 {[%clk 00:00:35]} {[%emt 00:00:01]} 23. Qc7 {[%clk
00:05:24]} {[%emt 00:00:27]} Bxd5 {[%clk 00:00:20]} {[%emt 00:00:21]} 24. Qxc8
{[%clk 00:05:27]} Raxc8 {[%clk 00:00:21]} {[%emt 00:00:03]} 25. Rc3 {[%clk
00:04:16]} {[%emt 00:01:17]} Bxe4+ {[%clk 00:00:16]} {[%emt 00:00:11]} 26. f3
{[%clk 00:04:15]} {[%emt 00:00:06]} Bxf3+ {[%clk 00:00:19]} {[%emt 00:00:02]}
27. Kxf3 {[%clk 00:03:59]} {[%emt 00:00:20]} Nd4+ {[%clk 00:00:24]} 28. Kf2
{[%clk 00:03:35]} {[%emt 00:00:29]} e4 {[%clk 00:00:28]} {[%emt 00:00:02]} 29.
Bg2 {[%clk 00:03:01]} {[%emt 00:00:38]} f5 {[%clk 00:00:28]} {[%emt 00:00:05]}
30. b4 {[%clk 00:02:44]} {[%emt 00:00:22]} g5 {[%clk 00:00:26]} {[%emt
00:00:07]} 31. Rcc1 {[%clk 00:01:58]} {[%emt 00:00:52]} Rf8 {[%clk 00:00:18]}
{[%emt 00:00:12]} 32. Kf1 {[%clk 00:01:21]} {[%emt 00:00:42]} f4 {[%clk
00:00:19]} {[%emt 00:00:04]} 33. gxf4 {[%clk 00:01:25]} {[%emt 00:00:02]} gxf4
{[%emt 00:00:02]} 34. Bxd4 {[%clk 00:01:24]} {[%emt 00:00:04]} Bxd4 {[%clk
00:00:26]} {[%emt 00:00:02]} 35. Bxe4 {[%clk 00:01:24]} {[%emt 00:00:05]} Rce8
{[%clk 00:00:21]} {[%emt 00:00:10]} 36. Bd5+ {[%clk 00:01:22]} {[%emt
00:00:08]} Kg7 {[%clk 00:00:23]} {[%emt 00:00:01]} 37. Rd2 {[%clk 00:01:16]}
{[%emt 00:00:13]} Be3 {[%clk 00:00:26]} {[%emt 00:00:02]} 38. Rg2+ {[%clk
00:01:20]} {[%emt 00:00:01]} Kf6 {[%clk 00:00:23]} {[%emt 00:00:07]} 39. Re1
{[%clk 00:01:11]} {[%emt 00:00:14]} Re5 {[%clk 00:00:15]} {[%emt 00:00:13]} 40.
Rge2 {[%clk 00:00:58]} {[%emt 00:00:19]} Rfe8 {[%clk 00:00:09]} {[%emt
00:00:11]} 41. b5 {[%clk 00:00:58]} {[%emt 00:00:05]} Bd4 {[%clk 00:00:12]}
{[%emt 00:00:02]} 42. Rxe5 {[%clk 00:00:58]} {[%emt 00:00:04]} dxe5 {[%clk
00:00:13]} {[%emt 00:00:05]} 43. Be4 {[%clk 00:00:53]} {[%emt 00:00:09]} Rg8
{[%clk 00:00:16]} {[%emt 00:00:02]} 44. Ke2 {[%clk 00:00:51]} {[%emt 00:00:07]}
Rg3 {[%clk 00:00:20]} 45. a4 {[%clk 00:00:32]} {[%emt 00:00:25]} Rxh3 {[%clk
00:00:20]} {[%emt 00:00:06]} 46. a5 {[%clk 00:00:30]} {[%emt 00:00:07]} Re3+
{[%clk 00:00:17]} {[%emt 00:00:07]} 47. Kd1 {[%clk 00:00:31]} {[%emt 00:00:04]}
Rxe1+ {[%clk 00:00:21]} {[%emt 00:00:01]} 48. Kxe1 {[%clk 00:00:34]} {[%emt
00:00:02]} Bc3+ {[%clk 00:00:26]} 49. Kf2 {[%clk 00:00:36]} {[%emt 00:00:03]}
Bxa5 {[%clk 00:00:30]} {[%emt 00:00:02]} 50. Kf3 {[%clk 00:00:40]} Kg5 {[%clk
00:00:32]} {[%emt 00:00:02]} 51. Bd5 {[%clk 00:00:41]} {[%emt 00:00:05]} h5
{[%clk 00:00:35]} {[%emt 00:00:01]} 52. Be4 {[%clk 00:00:45]} {[%emt 00:00:03]}
h4 {[%clk 00:00:39]} {[%emt 00:00:01]} 53. Bd5 {[%clk 00:00:43]} {[%emt
00:00:06]} Be1 {[%clk 00:00:33]} {[%emt 00:00:10]} 54. Be6 {[%clk 00:00:46]}
{[%emt 00:00:03]} Kf6 {[%clk 00:00:32]} {[%emt 00:00:06]} 55. Bd7 {[%clk
00:00:49]} {[%emt 00:00:02]} Ke7 {[%clk 00:00:32]} {[%emt 00:00:04]} 56. Bf5
{[%clk 00:00:51]} {[%emt 00:00:05]} Kd6 {[%clk 00:00:27]} {[%emt 00:00:09]} 57.
Bc8 {[%clk 00:00:48]} {[%emt 00:00:08]} Kc7 {[%clk 00:00:23]} {[%emt 00:00:09]}
58. Bf5 {[%clk 00:00:49]} {[%emt 00:00:03]} Kb6 {[%clk 00:00:26]} {[%emt
00:00:03]} 59. Ke4 {[%clk 00:00:43]} {[%emt 00:00:11]} Bc3 {[%clk 00:00:30]}
{[%emt 00:00:01]} 60. Kf3 {[%clk 00:00:46]} {[%emt 00:00:02]} Ka5 {[%clk
00:00:32]} {[%emt 00:00:04]} 61. Bh3 {[%clk 00:00:32]} {[%emt 00:00:18]} Kb4
{[%clk 00:00:30]} {[%emt 00:00:08]} 62. Bf1 {[%clk 00:00:35]} {[%emt 00:00:01]}
h3 {[%clk 00:00:31]} {[%emt 00:00:04]} 63. Bxh3 {[%clk 00:00:32]} {[%emt
00:00:08]} Kxc4 {[%clk 00:00:35]} {[%emt 00:00:02]} 64. Bf1+ {[%clk 00:00:36]}
Kd4 {[%clk 00:00:36]} {[%emt 00:00:03]} 65. Be2 {[%clk 00:00:34]} {[%emt
00:00:07]} c4 {[%clk 00:00:40]} {[%emt 00:00:02]} 66. Bf1 {[%clk 00:00:37]}
{[%emt 00:00:01]} Kc5 {[%clk 00:00:38]} {[%emt 00:00:07]} 67. Ke4 {[%clk
00:00:41]} {[%emt 00:00:02]} Bd4 {[%clk 00:00:32]} {[%emt 00:00:10]} 68. Be2
{[%clk 00:00:45]} {[%emt 00:00:02]} Kxb5 {[%clk 00:00:23]} {[%emt 00:00:14]} 69.
Kd5 {[%clk 00:00:48]} {[%emt 00:00:01]} a5 {[%clk 00:00:27]} {[%emt 00:00:01]}
70. Bxc4+ {[%clk 00:00:52]} {[%emt 00:00:01]} Kb4 {[%clk 00:00:32]} 71. Be2
{[%clk 00:00:54]} {[%emt 00:00:03]} a4 {[%clk 00:00:36]} {[%emt 00:00:01]} 72.
Bc4 {[%clk 00:00:32]} {[%emt 00:00:27]} f3 {[%clk 00:00:36]} {[%emt 00:00:05]}
0-1

[Event "MCR rapid mládeže 2023 U16"]
[Site "Harachov, Czech Republic"]
[Date "2023.09.10"]
[Round "8.21"]
[White "Komarek, Tobias"]
[Black "Frantsev, Iegor"]
[Result "0-1"]
[TimeControl "20min+5s/move"]
[WhiteElo "1312"]
[BlackElo "1431"]

1. c4 {[%clk 00:20:07]} {[%emt 00:00:03]} c6 {[%clk 00:19:59]} {[%emt
00:00:12]} 2. g3 {[%clk 00:20:04]} {[%emt 00:00:08]} d5 {[%clk 00:19:57]}
{[%emt 00:00:06]} 3. cxd5 {[%clk 00:19:45]} {[%emt 00:00:26]} cxd5 {[%clk
00:19:56]} {[%emt 00:00:05]} 4. d4 {[%clk 00:19:48]} {[%emt 00:00:01]} Nf6
{[%clk 00:19:54]} {[%emt 00:00:07]} 5. Bg2 {[%clk 00:19:52]} {[%emt 00:00:02]}
Nc6 {[%clk 00:19:57]} {[%emt 00:00:02]} 6. Nc3 {[%clk 00:19:51]} {[%emt
00:00:06]} Bf5 {[%clk 00:19:32]} {[%emt 00:00:29]} 7. Bg5 {[%clk 00:19:06]}
{[%emt 00:00:52]} e6 {[%clk 00:18:59]} {[%emt 00:00:37]} 8. Nf3 {[%clk
00:18:43]} {[%emt 00:00:27]} Be7 {[%clk 00:18:12]} {[%emt 00:00:51]} 9. O-O
{[%clk 00:18:44]} {[%emt 00:00:05]} O-O {[%clk 00:18:09]} {[%emt 00:00:08]} 10.
Bf4 {[%clk 00:18:15]} {[%emt 00:00:35]} Bd6 {[%clk 00:17:21]} {[%emt 00:00:50]}
11. Bxd6 {[%clk 00:18:15]} {[%emt 00:00:07]} Qxd6 {[%clk 00:17:14]} {[%emt
00:00:12]} 12. Nh4 {[%clk 00:18:12]} {[%emt 00:00:08]} Bg6 {[%clk 00:16:48]}
{[%emt 00:00:31]} 13. e3 {[%clk 00:17:18]} {[%emt 00:01:00]} a6 {[%clk
00:16:35]} {[%emt 00:00:18]} 14. Na4 {[%clk 00:16:49]} {[%emt 00:00:34]} Nd7
{[%clk 00:15:14]} {[%emt 00:01:23]} 15. Rc1 {[%clk 00:16:23]} {[%emt 00:00:34]}
Rac8 {[%clk 00:13:59]} {[%emt 00:01:20]} 16. Qd2 {[%clk 00:14:51]} {[%emt
00:01:37]} Na7 {[%clk 00:12:31]} {[%emt 00:01:32]} 17. Rxc8 {[%clk 00:14:22]}
{[%emt 00:00:34]} Rxc8 {[%clk 00:12:28]} {[%emt 00:00:09]} 18. Rc1 {[%clk
00:14:12]} {[%emt 00:00:15]} Rc6 {[%clk 00:07:08]} {[%emt 00:05:25]} 19. Rxc6
{[%clk 00:13:19]} {[%emt 00:00:58]} Qxc6 {[%clk 00:06:50]} {[%emt 00:00:23]} 20.
Qc3 {[%clk 00:12:32]} {[%emt 00:00:52]} Qxa4 {[%clk 00:06:11]} {[%emt
00:00:44]} 21. Bf3 {[%clk 00:10:14]} {[%emt 00:02:22]} Qc6 {[%clk 00:05:52]}
{[%emt 00:00:23]} 22. Qb4 {[%clk 00:10:13]} {[%emt 00:00:06]} Bd3 {[%clk
00:04:43]} {[%emt 00:01:13]} 23. Qd2 {[%clk 00:09:46]} {[%emt 00:00:33]} Qc2
{[%clk 00:04:33]} {[%emt 00:00:14]} 24. Qxc2 {[%clk 00:09:36]} {[%emt
00:00:17]} Bxc2 {[%clk 00:04:36]} {[%emt 00:00:02]} 25. Be2 {[%clk 00:09:37]}
{[%emt 00:00:04]} Be4 {[%clk 00:03:33]} {[%emt 00:00:55]} 26. f3 {[%clk
00:09:30]} {[%emt 00:00:25]} Bb1 {[%clk 00:03:24]} {[%emt 00:00:12]} 27. a3
{[%clk 00:09:22]} {[%emt 00:00:14]} Ba2 {[%clk 00:02:56]} {[%emt 00:00:33]} 28.
Ng2 {[%clk 00:09:18]} {[%emt 00:00:09]} Bc4 {[%clk 00:02:55]} {[%emt 00:00:06]}
29. Bd1 {[%clk 00:09:21]} {[%emt 00:00:03]} Bb5 {[%clk 00:02:15]} {[%emt
00:00:45]} 30. Ne1 {[%clk 00:09:14]} {[%emt 00:00:11]} Nb6 {[%clk 00:02:02]}
{[%emt 00:00:16]} 31. Kf2 {[%clk 00:09:11]} {[%emt 00:00:10]} Nc4 {[%clk
00:01:34]} {[%emt 00:00:34]} 32. a4 {[%clk 00:09:13]} {[%emt 00:00:03]} Nxb2
{[%clk 00:01:11]} {[%emt 00:00:28]} 33. axb5 {[%clk 00:08:17]} {[%emt
00:01:01]} Nxd1+ {[%clk 00:01:12]} {[%emt 00:00:03]} 34. Ke2 {[%clk 00:08:20]}
{[%emt 00:00:03]} Nc3+ {[%clk 00:01:15]} {[%emt 00:00:01]} 35. Kd3 {[%clk
00:08:23]} {[%emt 00:00:02]} Ncxb5 {[%clk 00:01:19]} {[%emt 00:00:01]} 36. Nc2
{[%clk 00:08:26]} {[%emt 00:00:03]} Nc6 {[%clk 00:01:22]} {[%emt 00:00:02]} 37.
e4 {[%clk 00:08:20]} {[%emt 00:00:11]} dxe4+ {[%clk 00:01:05]} {[%emt
00:00:22]} 38. fxe4 {[%clk 00:08:23]} {[%emt 00:00:02]} Nbxd4 {[%clk 00:00:36]}
{[%emt 00:00:35]} 39. Nxd4 {[%clk 00:08:25]} {[%emt 00:00:02]} Nxd4 {[%clk
00:00:39]} {[%emt 00:00:02]} 40. Kxd4 {[%clk 00:08:29]} {[%emt 00:00:01]} b5
{[%clk 00:00:43]} {[%emt 00:00:01]} 41. Kc5 {[%clk 00:08:31]} {[%emt 00:00:03]}
Kf8 {[%clk 00:00:47]} {[%emt 00:00:01]} 42. e5 {[%clk 00:08:32]} {[%emt
00:00:04]} Ke7 {[%clk 00:00:50]} {[%emt 00:00:02]} 0-1

[Event "MCR rapid mládeže 2023 U16"]
[Site "Harachov, Czech Republic"]
[Date "2023.09.10"]
[Round "8.22"]
[White "Bara, Jan"]
[Black "Krasovskyi, Stanislav"]
[Result "1-0"]
[TimeControl "20min+5s/move"]
[WhiteElo "1823"]
[BlackElo "1212"]

1. c4 {[%clk 00:20:09]} {[%emt 00:00:02]} c5 {[%clk 00:20:09]} {[%emt
00:00:01]} 2. Nc3 {[%clk 00:20:10]} {[%emt 00:00:05]} Nc6 {[%clk 00:20:12]}
{[%emt 00:00:01]} 3. g3 {[%clk 00:20:13]} {[%emt 00:00:01]} g6 {[%clk
00:20:13]} {[%emt 00:00:05]} 4. Bg2 {[%clk 00:20:17]} Bg7 {[%clk 00:20:16]}
{[%emt 00:00:02]} 5. Nf3 {[%clk 00:20:20]} {[%emt 00:00:02]} Nf6 {[%clk
00:20:19]} {[%emt 00:00:02]} 6. O-O {[%clk 00:20:23]} {[%emt 00:00:02]} O-O
{[%clk 00:20:21]} {[%emt 00:00:03]} 7. e3 {[%clk 00:20:17]} {[%emt 00:00:11]}
e6 {[%clk 00:20:18]} {[%emt 00:00:09]} 8. d4 {[%clk 00:20:14]} {[%emt
00:00:08]} d6 {[%clk 00:20:09]} {[%emt 00:00:14]} 9. b3 {[%clk 00:19:24]}
{[%emt 00:00:55]} cxd4 {[%clk 00:19:44]} {[%emt 00:00:29]} 10. Nxd4 {[%clk
00:19:10]} {[%emt 00:00:20]} Nxd4 {[%clk 00:19:46]} {[%emt 00:00:03]} 11. exd4
{[%clk 00:19:14]} {[%emt 00:00:01]} Qb6 {[%clk 00:19:32]} {[%emt 00:00:17]} 12.
Bb2 {[%clk 00:17:56]} {[%emt 00:01:25]} e5 {[%clk 00:19:07]} {[%emt 00:00:27]}
13. Na4 {[%clk 00:17:03]} {[%emt 00:01:00]} Qc7 {[%clk 00:19:00]} {[%emt
00:00:11]} 14. Re1 {[%clk 00:16:58]} {[%emt 00:00:11]} Bd7 {[%clk 00:18:30]}
{[%emt 00:00:35]} 15. dxe5 {[%clk 00:16:44]} {[%emt 00:00:20]} dxe5 {[%clk
00:18:33]} {[%emt 00:00:02]} 16. Bxe5 {[%clk 00:16:45]} {[%emt 00:00:04]} Qc8
{[%clk 00:18:24]} {[%emt 00:00:12]} 17. Nc3 {[%clk 00:15:49]} {[%emt 00:01:02]}
Rd8 {[%clk 00:18:00]} {[%emt 00:00:27]} 18. Bxf6 {[%clk 00:14:47]} {[%emt
00:01:09]} Bxf6 {[%clk 00:18:01]} {[%emt 00:00:04]} 19. Nd5 {[%clk 00:14:50]}
{[%emt 00:00:02]} Kg7 {[%clk 00:16:59]} {[%emt 00:01:06]} 20. Nxf6 {[%clk
00:14:51]} {[%emt 00:00:05]} Kxf6 {[%clk 00:17:00]} {[%emt 00:00:04]} 21. Qd4+
{[%clk 00:14:54]} {[%emt 00:00:02]} Kg5 {[%clk 00:16:51]} {[%emt 00:00:12]} 22.
Qg7 {[%clk 00:14:54]} {[%emt 00:00:06]} Bh3 {[%clk 00:16:32]} {[%emt 00:00:25]}
23. f4+ {[%clk 00:14:49]} {[%emt 00:00:10]} Kg4 {[%clk 00:15:17]} {[%emt
00:01:20]} 24. Bxh3+ {[%clk 00:14:51]} {[%emt 00:00:04]} Kf3 {[%clk 00:15:21]}
{[%emt 00:00:01]} 25. Qc3+ {[%clk 00:14:44]} {[%emt 00:00:11]} Rd3 {[%clk
00:15:22]} {[%emt 00:00:04]} 26. Qxd3# {[%clk 00:14:36]} {[%emt 00:00:02]} 1-0